[Event "Romanian Team Blitz Open 2022"]
[Site "Sebes"]
[Date "2022.12.04"]
[Round "5.32"]
[White "Chereches, Marius-Calin"]
[Black "Tarciuc, Ianis-Mihai"]
[Result "0-1"]
[ECO "B75"]
[WhiteElo "1472"]
[BlackElo "1642"]
[Annotator "NA RC COMBH"]
[PlyCount "38"]
[EventDate "2022.12.04"]
[EventType "blitz"]
[EventCountry "ROU"]
[SourceTitle "playchess.com"]
[Source "ChessBase"]
[SourceQuality "1"]
[TimeControl "180+2"]

1. e4 {[%emt 0:00:01]} c5 {[%emt 0:00:01]} 2. Nf3 {[%emt 0:00:01]} g6 {[%emt 0:00:01]} 3. d4 {[%emt 0:00:01]} cxd4 {[%emt 0:00:01]} 4. Nxd4 {[%emt 0:00:01]} Nc6 {[%emt 0:00:00]} 5. Be3 {[%emt 0:00:01]} Bg7 {[%emt 0:00:01]} 6. Nc3 {[%emt 0:00:04]} Nf6 {[%emt 0:00:04]} 7. Bc4 {[%emt 0:00:04]} d6 {[%emt 0:00:06]} 8. f3 {[%emt 0:00:07]} a6 {[%emt 0:00:09]} 9. Qd2 {[%emt 0:00:11]} Na5 {[%emt 0:00:04]} 10. Be2 {[%emt 0:00:18]} Bd7 {[%emt 0:00:02]} 11. g4 {[%emt 0:00:10]} Rc8 {[%emt 0:00:10]} 12. h4 {[%emt 0:00:03]} h5 {[%emt 0:00:08]} 13. gxh5 {[%emt 0:00:12]} Nxh5 {[%emt 0:00:06]} 14. f4 {[%emt 0:00:05]} Ng3 {[%emt 0:00:11]} 15. Rh2 {[%emt 0:00:12]} Nxe2 {[%emt 0:00:02]} 16. Qxe2 {[%emt 0:00:04]} Nc4 {[%emt 0:00:07]} 17. O-O-O {[%emt 0:00:47]} Qb6 {[%emt 0:00:35]} 18. b3 {[%emt 0:00:40]} Nxe3 {[%emt 0:00:24]} 19. Qxe3 {[%emt 0:00:00]} Qc5 {[%emt 0:00:34]} 0-1

[Event "Romanian Team Blitz Open 2022"]
[Site "Sebes"]
[Date "2022.12.04"]
[Round "6.1"]
[White "Lupulescu, Constantin"]
[Black "Stefan, Romulus-Cristian"]
[Result "1-0"]
[ECO "E83"]
[WhiteElo "2591"]
[BlackElo "2097"]
[Annotator "TA"]
[PlyCount "53"]
[EventDate "2022.12.04"]
[EventType "blitz"]
[EventCountry "ROU"]
[SourceTitle "playchess.com"]
[Source "ChessBase"]
[SourceQuality "1"]
[TimeControl "180+2"]

{[%evp 13,53,43,44,34,48,45,56,54,58,48,75,68,108,108,115,117,145,154,163,141,145,143,133,125,204,200,219,214,222,191,246,241,318,263,335,300,372,378,487,491,480,485]} 1. d4 {[%emt 0:00:01]} d6 {[%emt 0:00:02]} 2. e4 {[%emt 0:00:05]} Nf6 {[%emt 0:00:02]} 3. f3 {[%emt 0:00:03]} g6 {[%emt 0:00:05]} 4. c4 {[%emt 0:00:01]} Bg7 {[%emt 0:00:01]} 5. Nc3 {[%emt 0:00:01]} O-O {[%emt 0:00:01]} 6. Be3 {[%emt 0:00:01]} Nc6 {[%emt 0:00:04]} 7. Nge2 {[%emt 0:00:04]} a6 {[%emt 0:00:01]} 8. Rc1 {[%emt 0:00:03] E83: King's Indian: Sämisch Panno (6...Nc6): Lines without either Nge2 or Qd2.} Nd7 {[%emt 0:00:16] [#] 8...Bd7 is the modern continuation.} 9. d5 $146 {[%emt 0:00:24]} ({Predecessor:} 9. Qd2 Na5 10. Nd1 c5 11. d5 b5 12. b3 Ne5 13. Ng3 h5 14. h4 e6 15. Be2 bxc4 16. bxc4 exd5 17. cxd5 {½-½ (74) Leschinsky,G (1955)-De la Colina,N (2118) Chess.com INT 2022}) 9... Nce5 {[%emt 0:00:12]} 10. Ng3 {[%emt 0:00:08][%cal Be2g3,Bg3h1,Bh1f2][%mdl 32] Hoping for f4. White is slightly better.} Nf6 {[%emt 0:00:05]} 11. Be2 {[%emt 0:00:03]} c5 {[%emt 0:00:07]} 12. O-O {[%emt 0:00:06]} h5 {[%emt 0:00:06]} 13. h3 {[%emt 0:00:03]} h4 {[%emt 0:00:15] [#]} 14. Nh1 {[%emt 0:00:01]} Nh7 {[%emt 0:00:00]} 15. f4 {[%emt 0:00:09]} Nd7 {[%emt 0:00:01]} 16. Nf2 {[%emt 0:00:05]} f5 {[%emt 0:00:12]} 17. a3 {[%emt 0:00:15]} Nhf6 {[%emt 0:00:07]} 18. b4 {[%emt 0:00:06]} b6 {[%emt 0:00:02]} (18... cxb4 $16 19. axb4 a5) 19. Bd3 {[%emt 0:00:01]} Nb8 {[%emt 0:00:21]} 20. e5 {[%emt 0:00:07]} Nh5 {[%emt 0:00:03]} 21. e6 {[%emt 0:00:01]} Ng3 {[%emt 0:00:07]} (21... cxb4 $142 22. Na4 (22. axb4 b5 $18) 22... bxa3 23. Nxb6 Bb7 24. Nxa8 Bxa8) 22. Re1 $18 {[%emt 0:00:01]} b5 {[%emt 0:00:23]} 23. Nh1 {[%emt 0:00:41]} ({Don't play} 23. cxb5 cxb4 24. axb4 axb5 25. Nxb5 (25. Bxb5 Ba6 $18) 25... Na6 $18) 23... bxc4 {[%emt 0:00:22]} 24. Bxc4 {[%emt 0:00:04]} cxb4 {[%emt 0:00:06]} 25. axb4 {[%emt 0:00:03]} Bb7 {[%emt 0:00:20]} 26. Nxg3 {[%emt 0:00:03]} hxg3 {[%emt 0:00:01]} 27. Na4 {[%emt 0:00:04] Black got outplayed after the opening.   Weighted Error Value: White=0.07 (flawless) /Black=0.35} 1-0

[Event "Romanian Team Blitz Open 2022"]
[Site "Sebes"]
[Date "2022.12.04"]
[Round "6.2"]
[White "Arion, Ilie"]
[Black "Jianu, Vlad-Cristian"]
[Result "0-1"]
[ECO "A64"]
[WhiteElo "1924"]
[BlackElo "2516"]
[Annotator "TA"]
[PlyCount "66"]
[EventDate "2022.12.04"]
[EventType "blitz"]
[EventCountry "ROU"]
[SourceTitle "playchess.com"]
[Source "ChessBase"]
[SourceQuality "1"]
[TimeControl "180+2"]

{[%evp 25,66,0,7,12,47,51,60,45,97,102,96,-23,-37,-89,-69,-79,-44,-512,-521,-535,-495,-660,-652,-678,-726,-721,-696,-780,-673,-675,-662,-650,-617,-645,-555,-894,-893,-975,-941,-5977,-5781,-5702,-5685]} 1. d4 {[%emt 0:00:01]} Nf6 {[%emt 0:00:01]} 2. c4 {[%emt 0:00:01]} e6 {[%emt 0:00:00]} 3. g3 {[%emt 0:00:02]} c5 {[%emt 0:00:03]} 4. d5 {[%emt 0:00:01]} exd5 {[%emt 0:00:01]} 5. cxd5 {[%emt 0:00:02]} d6 {[%emt 0:00:01]} 6. Bg2 {[%emt 0:00:02]} g6 {[%emt 0:00:01]} 7. Nc3 {[%emt 0:00:01]} Bg7 {[%emt 0:00:01]} 8. Nf3 {[%emt 0:00:02]} O-O {[%emt 0:00:01]} 9. O-O {[%emt 0:00:02]} Re8 {[%emt 0:00:01]} 10. Nd2 {[%emt 0:00:06]} a6 {[%emt 0:00:02]} 11. a4 {[%emt 0:00:01]} Nbd7 {[%emt 0:00:02]} 12. h3 {[%emt 0:00:03]} Rb8 {[%emt 0:00:05]} 13. Nc4 {[%emt 0:00:04]} Ne5 {[%emt 0:00:01]} 14. Na3 {[%emt 0:00:02] A64: Modern Benoni: Fianchetto Variation: 9...Nbd7 10 Nd2 a6 11 a4 Re8.} h5 {[%emt 0:00:39]} (14... Nh5 $5) 15. f4 {[%emt 0:00:04]} Ned7 {[%emt 0:00:01][%cal Oc5c4]} 16. e4 {[%emt 0:00:01] Prevents c4. White is slightly better.} Qe7 {[%emt 0:00:11]} (16... b5 $14 17. axb5 Ra8) 17. Re1 {[%emt 0:00:02] [#]} Qf8 $146 {[%emt 0:00:02]} ({Predecessor:} 17... Nh7 18. Be3 b6 19. Nc4 Bb7 20. Bf2 Ba8 21. Qd2 b5 22. axb5 axb5 23. Na5 b4 {1-0 (32) Nemeth,D (2153)-Suhajda,A (1892) Miskolc 2010}) 18. e5 {[%emt 0:00:12]} (18. Qc2 $16) 18... dxe5 $11 {[%emt 0:00:03]} 19. fxe5 {[%emt 0:00:11]} (19. Be3 $15) 19... Nxe5 $17 {[%emt 0:00:13][%cal Bd7e5,Be5c4,Bc4e3][%mdl 32] aiming for ...Bf5.} 20. Bf4 {[%emt 0:00:01]} Nfd7 {[%emt 0:00:03]} 21. Nc4 $2 {[%emt 0:00:04][%mdl 8192] [#] Loses the game.} Nxc4 $19 {[%emt 0:00:03] Black is clearly winning.} 22. Bxb8 {[%emt 0:00:06]} Nxb8 {[%emt 0:00:05]} 23. Qc2 {[%emt 0:00:13]} Bd4+ {[%emt 0:00:08]} 24. Kh2 {[%emt 0:00:02]} Ne3 {[%emt 0:00:08]} 25. Qd2 {[%emt 0:00:07]} Bf5 {[%emt 0:00:29]} 26. Re2 {[%emt 0:00:11]} Nxg2 {[%emt 0:00:01]} 27. Kxg2 {[%emt 0:00:11]} Nd7 {[%emt 0:00:06]} 28. Rf1 {[%emt 0:00:10]} Rxe2+ {[%emt 0:00:02]} 29. Qxe2 {[%emt 0:00:08]} Qd6 {[%emt 0:00:05]} 30. Qf3 {[%emt 0:00:21]} Ne5 {[%emt 0:00:09]} 31. Qd1 {[%emt 0:00:01]} Qd7 {[%emt 0:00:13]} 32. Rh1 {[%emt 0:00:17]} Bxc3 {[%emt 0:00:02]} 33. bxc3 {[%emt 0:00:02]} Be4+ {[%emt 0:00:01] Weighted Error Value: White=0.91/Black=0.30} 0-1

[Event "Romanian Team Blitz Open 2022"]
[Site "Sebes"]
[Date "2022.12.04"]
[Round "6.3"]
[White "Parligras, Mircea-Emilian"]
[Black "Craciun, Ovidiu"]
[Result "1-0"]
[ECO "E90"]
[WhiteElo "2567"]
[BlackElo "1857"]
[Annotator "TA"]
[PlyCount "79"]
[EventDate "2022.12.04"]
[EventType "blitz"]
[EventCountry "ROU"]
[SourceTitle "playchess.com"]
[Source "ChessBase"]
[SourceQuality "1"]
[TimeControl "180+2"]

{[%evp 13,79,29,56,-21,-29,-59,59,-18,45,50,52,35,74,70,62,47,94,72,116,97,119,121,120,120,140,151,138,146,164,155,170,175,273,268,270,258,279,251,376,371,369,368,466,445,462,493,466,466,463,466,575,556,786,883,821,737,695,627,1654,1228,1170,1235,1350,1412,5222,11375,29985,29979]} 1. d4 {[%emt 0:00:03]} Nf6 {[%emt 0:00:01]} 2. c4 {[%emt 0:00:01]} g6 {[%emt 0:00:01]} 3. Nc3 {[%emt 0:00:01]} Bg7 {[%emt 0:00:00]} 4. e4 {[%emt 0:00:01]} d6 {[%emt 0:00:01]} 5. h3 {[%emt 0:00:01]} c6 {[%emt 0:00:03]} 6. Be3 {[%emt 0:00:04]} O-O {[%emt 0:00:02]} 7. Nf3 {[%emt 0:00:03]} Nbd7 {[%emt 0:00:02] 7...e5 gains popularity.} 8. e5 {[%emt 0:00:07] E90: King's Indian: Classical: Early deviations and 6 h3.} (8. Be2 $14) 8... Ne8 $11 {[%emt 0:00:23][%cal Rd6e5] [#]} 9. h4 $146 {[%emt 0:00:24][%cal Oe5e6,Bh3h4,Bh4h5,Bh5h6][%mdl 32]} ({Predecessor:} 9. Qd2 Qa5 10. exd6 Nxd6 11. Bd3 Nf5 12. O-O-O Nxe3 13. fxe3 Rb8 14. h4 Nf6 15. Kb1 Qh5 {0-1 (45) Gudok,V (2299)-Podolsky,A (2240) Shepetivka 2011}) 9... c5 {[%emt 0:00:38] Prevents e6.} (9... dxe5 $15 10. h5 Nd6) 10. exd6 {[%emt 0:00:09]} ({White should try} 10. e6 $1 $14 fxe6 11. h5) 10... exd6 {[%emt 0:00:17]} ({Better is} 10... Nxd6 $11 11. Qd2 (11. dxc5 Nf5 $15) 11... Nf5) 11. h5 $14 {[%emt 0:00:05]} cxd4 {[%emt 0:00:36]} 12. Bxd4 {[%emt 0:00:06]} Ndf6 {[%emt 0:00:21]} 13. h6 {[%emt 0:00:11]} Bh8 {[%emt 0:00:02]} 14. Qd2 {[%emt 0:00:03]} Bf5 {[%emt 0:00:11] White leaves nothing to chance now.} (14... Nc7 $14) 15. Bd3 {[%emt 0:00:12]} Qc8 {[%emt 0:00:22]} 16. O-O-O $36 {[%emt 0:00:13][%mdl 2048] Black is under strong pressure.} Bxd3 {[%emt 0:00:11]} 17. Qxd3 {[%emt 0:00:02]} a6 {[%emt 0:00:02][%cal Ob7b5]} 18. Kb1 {[%emt 0:00:07] White has more active pieces.} b5 {[%emt 0:00:03]} 19. cxb5 {[%emt 0:00:18]} axb5 {[%emt 0:00:01]} 20. Nxb5 {[%emt 0:00:13]} Qa6 {[%emt 0:00:01]} 21. Nc3 {[%emt 0:00:02]} Qxd3+ {[%emt 0:00:04]} 22. Rxd3 {[%emt 0:00:02]} Ng4 {[%emt 0:00:02]} (22... Nc7 {might work better.} 23. Bxf6 Bxf6) 23. Nd5 $18 {[%emt 0:00:23][%cal Rd5e7] [#]} Bxd4 {[%emt 0:00:03]} 24. Rxd4 {[%emt 0:00:01]} ({Weaker is} 24. Nxd4 Nxf2 25. Rhh3 (25. Ne7+ Kh8 $17) 25... Nxh3 26. Rxh3 f6 $15) 24... Ne5 {[%emt 0:00:07]} 25. Rc1 {[%emt 0:00:09]} Nxf3 {[%emt 0:00:03]} (25... f6 {was called for.} 26. b4 Rf7) 26. gxf3 {[%emt 0:00:01]} f5 {[%emt 0:00:02]} 27. Nc7 {[%emt 0:00:11]} Nxc7 {[%emt 0:00:02]} 28. Rxc7 {[%emt 0:00:45]} Rf7 29. Rxf7 {[%emt 0:00:00]} Kxf7 {[%emt 0:00:01]} 30. Rxd6 {[%emt 0:00:00][%mdl 4096] Endgame KR-KR} g5 {[%emt 0:00:04]} 31. b4 {[%emt 0:00:00][%cal Bb2b4,Bb4b5,Bb5b6,Bb6b7][%mdl 32]} Re8 {[%emt 0:00:02]} 32. Kc2 {[%emt 0:00:00]} Re2+ {[%emt 0:00:01]} 33. Rd2 {[%emt 0:00:00]} Re6 {[%emt 0:00:04]} 34. b5 {[%emt 0:00:00]} Rxh6 {[%emt 0:00:01]} 35. a4 {[%emt 0:00:00][%cal Ba2a4,Ba4a5][%mdl 32] [#] aiming for a5.} g4 {[%emt 0:00:03]} 36. fxg4 {[%emt 0:00:00] Hoping for a5.} fxg4 {[%emt 0:00:01]} 37. Kc3 {[%emt 0:00:00]} Rf6 {[%emt 0:00:02]} 38. a5 {[%emt 0:00:00]} h5 {[%emt 0:00:01]} 39. b6 {[%emt 0:00:00] White threatens b7 and mate.} h4 {[%emt 0:00:00]} 40. b7 {[%emt 0:00:00] Weighted Error Value: White=0.13 (very precise) /Black=0.49} 1-0

[Event "Romanian Team Blitz Open 2022"]
[Site "Sebes"]
[Date "2022.12.04"]
[Round "6.4"]
[White "Stefan, Iulia-Cristiana"]
[Black "Gavrilescu, David"]
[Result "0-1"]
[ECO "B01"]
[WhiteElo "1662"]
[BlackElo "2523"]
[Annotator "TA"]
[PlyCount "48"]
[EventDate "2022.12.04"]
[EventType "blitz"]
[EventCountry "ROU"]
[SourceTitle "playchess.com"]
[Source "ChessBase"]
[SourceQuality "1"]
[TimeControl "180+2"]

{[%evp 9,48,89,75,77,93,41,77,77,70,72,97,93,113,132,166,105,238,123,118,102,121,88,99,55,93,0,0,0,42,0,121,120,123,123,121,-1162,-1148,-1144,-1052,-1525,-1488]} 1. e4 {[%emt 0:00:01]} d5 {[%emt 0:00:01]} 2. exd5 {[%emt 0:00:02]} c6 {[%emt 0:00:01]} 3. dxc6 {[%emt 0:00:01]} Nxc6 {[%emt 0:00:01]} 4. Nc3 {[%emt 0:00:15]} e5 {[%emt 0:00:02]} 5. Bc4 {[%emt 0:00:06]} Nf6 {[%emt 0:00:09]} 6. d3 {[%emt 0:00:07] B01: Scandinavian Defence.} Bc5 {[%emt 0:00:03]} 7. h3 {[%emt 0:00:06]} (7. Nf3 $16) 7... O-O {[%emt 0:00:18]} (7... Qd4 $2 8. Be3 Qd6 9. Nb5 $18) 8. Nf3 {[%emt 0:00:04] White is better.} Bf5 {[%emt 0:00:09] [#]} 9. O-O $146 {[%emt 0:00:05]} ({Predecessor:} 9. Bg5 e4 10. Bxf6 Qxf6 11. dxe4 Rfe8 12. O-O Bxe4 13. Nxe4 Rxe4 14. Qd5 Qe7 15. Qxf7+ Qxf7 16. Bxf7+ Kf8 17. Bb3 Re2 18. Rad1 Rd8 {1-0 (18) Spitzlei,P (1661)-Hilgert,V (1601) Eschborn 2016}) 9... Re8 {[%emt 0:00:03]} 10. Bg5 {[%emt 0:00:14]} Be7 {[%emt 0:00:16]} 11. Re1 {[%emt 0:00:19]} h6 {[%emt 0:00:01]} 12. Bh4 {[%emt 0:00:06]} (12. Nxe5 $1 $18 hxg5 13. Bxf7+ (13. Nxf7 Qa5 $16) 13... Kh8 14. Bxe8 Qxe8 15. Nxc6 bxc6 16. Qf3) 12... Qc7 {[%emt 0:00:36]} (12... Nd7 $16) 13. Bxf6 {[%emt 0:00:36]} (13. Nb5 $18 Qb8 14. Bg3) 13... Bxf6 $16 {[%emt 0:00:01]} 14. Nd5 {[%emt 0:00:01] Inhibits e4.} Qd6 {[%emt 0:00:01]} 15. Nxf6+ {[%emt 0:00:02]} Qxf6 {[%emt 0:00:02]} 16. Bb3 {[%emt 0:00:24]} Rad8 {[%emt 0:00:02] [#]} 17. Qe2 {[%emt 0:00:07]} (17. Re3 $1 $16) 17... e4 $11 {[%emt 0:00:05]} 18. dxe4 {[%emt 0:00:10]} Bxe4 {[%emt 0:00:15][%cal Oe8e7]} 19. c3 {[%emt 0:00:15]} Qg6 {[%emt 0:00:07]} (19... Re7 $11) 20. Rad1 $16 {[%emt 0:00:19] aiming for Rxd8.} Rxd1 {[%emt 0:00:08]} 21. Qxd1 {[%emt 0:00:06]} ({Don't take} 21. Rxd1 Re7 $14) 21... Re7 {[%emt 0:00:04] White must now prevent ...Bxf3.} 22. Bc4 $2 {[%emt 0:00:07][%mdl 8192]} (22. Re3 $16) 22... Bxf3 $19 {[%emt 0:00:04][%mdl 64] [#] Remove Defender, Deflection. Black is clearly winning.} 23. Qxf3 {[%emt 0:00:07]} Rxe1+ {[%emt 0:00:02]} 24. Bf1 {[%emt 0:00:01]} Qb1 {[%emt 0:00:04][%csl LRa2,LRb2,LRf1] Never resign too early!   Weighted Error Value: White=0.81/Black=0.36} 0-1

[Event "Romanian Team Blitz Open 2022"]
[Site "Sebes"]
[Date "2022.12.04"]
[Round "6.5"]
[White "Soltanici, Ruslan"]
[Black "Miron, Lucian-Costin"]
[Result "1-0"]
[ECO "B28"]
[WhiteElo "2357"]
[BlackElo "2510"]
[Annotator "TA"]
[PlyCount "108"]
[EventDate "2022.12.04"]
[EventType "blitz"]
[EventCountry "ROU"]
[SourceTitle "playchess.com"]
[Source "ChessBase"]
[SourceQuality "1"]
[TimeControl "180+2"]

{[%evp 10,108,44,51,27,43,62,50,68,60,54,43,46,54,55,50,50,46,100,79,115,124,179,156,300,316,295,300,294,336,662,667,675,669,665,654,791,787,712,158,110,84,82,62,63,53,81,26,173,37,43,0,149,93,120,90,96,81,175,121,151,-13,45,57,42,60,57,62,125,116,130,120,261,261,448,427,408,398,489,465,772,774,883,883,880,566,1121,1010,1121,883,883,883,1570,1523,1507,1337,2735,2372,5925,6602,4678]} 1. e4 {[%emt 0:00:01]} c5 {[%emt 0:00:01]} 2. Nc3 {[%emt 0:00:02]} a6 {[%emt 0:00:01]} 3. Nf3 {[%emt 0:00:01]} b5 {[%emt 0:00:11]} 4. d4 {[%emt 0:00:02]} cxd4 {[%emt 0:00:13]} 5. Nxd4 {[%emt 0:00:02]} Bb7 {[%emt 0:00:01]} 6. Bd3 {[%emt 0:00:04]} Nc6 {[%emt 0:00:07] B28: Sicilian: 2 Nf3 a6 (O'Kelly Variation).} 7. Nxc6 {[%emt 0:00:05] 7.Be3 is not played anymore.} dxc6 {[%emt 0:00:04]} 8. e5 {[%emt 0:00:26]} Qc7 {[%emt 0:00:17] White is slightly better.} 9. Qe2 {[%emt 0:00:08]} e6 {[%emt 0:00:27]} 10. O-O {[%emt 0:00:01]} Ne7 {[%emt 0:00:03] [#]} 11. Bf4 $146 {[%emt 0:00:14]} ({Predecessor:} 11. f4 Nf5 12. Bxf5 exf5 13. Be3 b4 14. Na4 c5 15. Qf2 Rc8 16. c3 Bc6 17. Nxc5 bxc3 {1-0 (39) Oglaza,O (2345)-Abdumalik,Z (2458) Warsaw 2019}) 11... Nd5 {[%emt 0:00:04] Inhibits a4.} 12. Nxd5 {[%emt 0:00:19]} cxd5 {[%emt 0:00:02]} 13. h4 {[%emt 0:00:02][%cal Bh2h4,Bh4h5][%mdl 32]} h6 {[%emt 0:00:45]} (13... d4 $14) 14. h5 $1 $16 {[%emt 0:00:05]} Qc6 {[%emt 0:00:13]} 15. Qg4 {[%emt 0:00:08]} Rc8 {[%emt 0:00:20]} (15... d4 $16) 16. c3 {[%emt 0:00:18]} Qb6 {[%emt 0:00:12]} (16... a5 $16 {is a better defense.} 17. a3 Rd8) 17. Be3 $18 {[%emt 0:00:03]} Qc7 {[%emt 0:00:06]} 18. Bd4 {[%emt 0:00:01]} Qd8 {[%emt 0:00:14]} 19. f4 {[%emt 0:00:02][%cal Bf2f4,Bf4f5][%mdl 32] Against Qg5} Bc6 $2 {[%emt 0:00:03]} (19... Rc7 20. Bb6 Qd7 21. Bxc7 Qxc7) 20. f5 {[%emt 0:00:07]} Qg5 {[%emt 0:00:01]} 21. Qxg5 {[%emt 0:00:31]} hxg5 {[%emt 0:00:01]} 22. fxe6 {[%emt 0:00:01]} fxe6 {[%emt 0:00:01]} 23. Bg6+ {[%emt 0:00:01]} Kd8 {[%emt 0:00:01]} 24. Rf3 $2 {[%emt 0:00:13]} (24. Bb6+ $18 {has better winning chances.} Rc7 25. Rf7 Bc5+ 26. Bxc5 Rxf7 27. Bxf7) 24... Be8 $16 {[%emt 0:00:04]} 25. Raf1 {[%emt 0:00:03]} Be7 {[%emt 0:00:05]} 26. Bxe8 {[%emt 0:00:16]} Kxe8 {[%emt 0:00:01]} 27. Rf7 {[%emt 0:00:01]} Rg8 {[%emt 0:00:14]} 28. Kh2 {[%emt 0:00:07]} (28. b4 $16) 28... Kd7 {[%emt 0:00:02] [#]} (28... Rf8 $11 {and Black has nothing to worry.} 29. Rxf8+ Bxf8) 29. Be3 {[%emt 0:00:04]} (29. b4 $1 $18 Ke8 30. R1f2) 29... Ke8 $1 $14 {[%emt 0:00:02]} 30. Bd4 {[%emt 0:00:06]} (30. Kg3 $14) 30... Kd7 $16 {[%emt 0:00:01] [#]} 31. Kg3 {[%emt 0:00:03]} (31. b4 $142 $1 {aiming for Bc5.} Ke8 32. R1f2) 31... Ke8 {[%emt 0:00:03]} 32. Kg4 {[%emt 0:00:01]} b4 {[%emt 0:00:01]} 33. R7f3 {[%emt 0:00:09] White has more active pieces.} bxc3 {[%emt 0:00:02]} (33... a5 $16) 34. bxc3 {[%emt 0:00:02]} (34. Rxc3 $18 Kd7 35. Rf7) 34... Rb8 {[%emt 0:00:01]} 35. c4 $2 {[%emt 0:00:07]} ({Better is} 35. g3 $16) 35... dxc4 {[%emt 0:00:02]} (35... Rb4 $11) 36. Rc3 {[%emt 0:00:01]} Rc8 {[%emt 0:00:01]} 37. Rfc1 {[%emt 0:00:00]} Rf8 {[%emt 0:00:01] White must now prevent ...Rf4+.} 38. g3 {[%emt 0:00:01] Inhibits Rf4+.} (38. Rxc4 $2 {perishes.} Rf4+ 39. Kh3 Rxc4 40. Rxc4 Bd8 $19) 38... Rf5 {[%emt 0:00:04] Black is on the road to losing.} (38... Kf7 $14) 39. Rxc4 {[%emt 0:00:02]} Rxc4 {[%emt 0:00:02]} 40. Rxc4 {[%emt 0:00:00][%mdl 4096] Endgame Threatens to win with Rc6. KRB-KRB} Kd7 {[%emt 0:00:02] Prevents Rc6.} (40... Rf1 $16) 41. Ra4 $18 {[%emt 0:00:02]} Kc6 $2 {[%emt 0:00:01]} (41... Rf1 {might work better.} 42. Rxa6 Rb1) 42. Rxa6+ {[%emt 0:00:04]} Kd5 {[%emt 0:00:01]} 43. Ra7 {[%emt 0:00:03]} Bb4 {[%emt 0:00:03]} 44. Be3 {[%emt 0:00:05] White is clearly winning.} Bc3 {[%emt 0:00:06]} (44... Rxe5 $142 45. Bxg5 Re4+ 46. Kf3 Bc3 47. Rd7+ Kc6 48. Rxg7 Ra4) 45. Rxg7 {[%emt 0:00:04]} Ke4 {[%emt 0:00:02]} 46. Bxg5 {[%emt 0:00:01]} Bxe5 {[%emt 0:00:01]} 47. Re7 {[%emt 0:00:02]} Rf3 {[%emt 0:00:01]} 48. Bh4 {[%emt 0:00:03]} ({Weaker is} 48. Rxe6 Rxg3+ 49. Kh4 Ra3 $16) 48... Ra3 {[%emt 0:00:02]} 49. Rxe6 {[%emt 0:00:02]} Kd5 {[%emt 0:00:01]} 50. Re8 {[%emt 0:00:03]} Rxa2 {[%emt 0:00:01]} 51. h6 {[%emt 0:00:02]} Ra7 {[%emt 0:00:03]} 52. Kh5 {[%emt 0:00:02]} Bd6 {[%emt 0:00:04]} 53. g4 {[%emt 0:00:02][%cal Bg3g4,Bg4g5][%mdl 32]} Bf4 {[%emt 0:00:03]} 54. g5 {[%emt 0:00:02] Threatening mate with g6.} Bc1 {[%emt 0:00:05] Weighted Error Value: White=0.41/Black=0.45} 1-0